fUSD/lending_fUSD_20240820
["ID","MTS","AMOUNT","RATE_DAILY","PERIOD"]
[335396190,1724185832024,-420.25,0.00010899,2]
[335396191,1724185832034,-155.1718428,0.00010899,2]
[335396192,1724185832043,-432.72137993,0.00010899,2]
[335396193,1724185832052,-150.0,0.00010899,2]
[335396194,1724185832061,-212.24423528,0.000109,2]
[335396195,1724185832070,-45656.0,0.000109,2]
[335396196,1724185832079,-336.0,0.00010913,2]
[335396197,1724185832089,-254.09,0.00010959,2]
[335396198,1724185832099,-250.0,0.00010959,2]
[335396199,1724185832108,-454.17,0.00010959,2]
[335396200,1724185832117,-561.23224836,0.00010979,2]
[335396201,1724185832126,-840.0,0.00010979,2]
[335396202,1724185832136,-155.18436246,0.00010989,2]
[335396203,1724185832145,-155.21787713,0.00010993,2]
[335396204,1724185832154,-304.12480458,0.00010993,2]
[335396205,1724185832163,-588.82412706,0.00010998,2]
[335396206,1724185832173,-347.8973895,0.00010999,2]
[335396207,1724185832182,-19455.27096618,0.00011,2]
[335396208,1724185832194,-322.91174239,0.00011,2]
[335396209,1724185832205,-44433.57140836,0.00011,2]
[335396210,1724185832217,-3960.73669881,0.00011,2]
[335396211,1724185832228,-14391.01,0.00011,2]
[335396212,1724185832239,-2005.57355483,0.00011,2]
[335396213,1724185832251,-1650.99,0.00011,2]
[335396215,1724185832270,-8566.99748978,0.00011,2]
[335396232,1724185837762,-155.0,9.999e-05,2]
[335396233,1724185837771,-496.5248202,0.00010097,2]
[335396234,1724185837783,-106.86775277,0.00010097,2]
[335396235,1724185837793,-500.0,0.00010999,2]
[335396236,1724185837802,-4393.13224723,0.00011,2]
[335396237,1724185837814,-5404.0283756,0.00011,2]
[335396238,1724185837872,-843.27,0.00011,2]
[335396239,1724185838036,-17123.90098069,0.00011,2]
[335396328,1724185839146,170.2,9.844e-05,2]
[335396404,1724185839879,-155.0,0.00010505,2]
[335396406,1724185839888,-500.0,0.00010999,2]
[335396408,1724185839897,-5094.0,0.00011,2]
[335396428,1724185840174,-12414.52112455,0.00011,2]
[335396444,1724185840446,-2923.62999489,0.00011,2]
[335396445,1724185840463,-687.06,0.00011,2]
[335396446,1724185840474,-824.7342915,0.00011,2]
[335396447,1724185840485,-502.49888056,0.00011,2]
[335396448,1724185840499,-2437.59878754,0.00011,2]
[335396449,1724185840511,-1213.13686397,0.00011,2]
[335396450,1724185840521,-354.33584849,0.00011,2]
[335396451,1724185840532,-407.28083526,0.00011,2]
[335396452,1724185840543,-531.2423039,0.00011,2]
[335396453,1724185840554,-293.04699676,0.00011,2]
[335396454,1724185840564,-2556.83930075,0.00011,2]
[335396468,1724185842788,-472.67358849,0.00011,2]
[335396479,1724185843412,-11962.4,0.00011,2]
[335396480,1724185843423,-446.25,0.00011,2]
[335396481,1724185843449,-1016.18242901,0.00011,2]
[335396482,1724185843460,-576.09,0.00011,2]
[335396483,1724185843471,-301.25385499,0.00011,2]
[335396487,1724185845908,-591.4161,0.00010999,2]
[335396851,1724185928390,155.36,8.255e-05,2]
[335396854,1724186003284,152.98,7.131e-05,2]
[335396855,1724186140799,166.66,9.9e-05,2]
[335396856,1724186191166,150.0,9.893e-05,2]
[335396857,1724186252293,1000.0,9.879e-05,2]
[335396858,1724186268716,464.43,8.219e-05,2]
[335396859,1724186273639,250.0,9.88e-05,2]
[335396860,1724186346462,184.16,9.801e-05,2]
[335396861,1724186356263,155.70062256,9.899e-05,2]
[335396862,1724186399459,768.83,9.871e-05,2]
[335396863,1724186436695,23900.0,9.855e-05,2]
[335396864,1724186466305,152.98,7.114e-05,2]
[335396865,1724186471161,275.45,9.855e-05,2]
[335396866,1724186499494,644.99793751,9.855e-05,2]
[335396867,1724186536157,8296.79,9.853e-05,2]
[335396868,1724186724433,200.0,9.853e-05,2]
[335396869,1724186737109,464.59,8.219e-05,2]
[335396877,1724186803416,172.87,9.854e-05,2]
[335396878,1724186813467,234.93,9.853e-05,2]
[335396889,1724186876400,250.0,9.852e-05,2]
[335396890,1724186890790,23900.0,9.853e-05,2]
[335396892,1724187013383,169.91677294,9.853e-05,2]
[335396899,1724187031922,-530.45,9.926e-05,2]
[335396900,1724187031932,-664.06103016,9.929e-05,2]
[335396901,1724187031978,-479.16,9.929e-05,2]
[335396902,1724187033381,155.0,9.899e-05,2]
[335396908,1724187037947,-1244.75419305,9.929e-05,2]
[335396909,1724187037956,-883.01136766,9.943e-05,2]
[335396910,1724187037966,-5467.82068003,0.00010009,2]
[335396911,1724187037980,-155.1540824,0.00010009,2]
[335396912,1724187037989,-367.87511774,0.00010009,2]
[335396913,1724187037999,-300.0,0.00010025,2]
[335396914,1724187038009,-252.18758291,0.00010026,2]
[335396915,1724187038019,-395.19865045,0.00010026,2]
[335396916,1724187038029,-464.59,0.00010468,2]
[335396917,1724187038038,-219.07389839,0.00010566,2]
[335396918,1724187038049,-357.18774068,0.00010699,2]
[335396919,1724187038059,-380.32741541,0.00010799,2]
[335396920,1724187038069,-155.0,0.00010799,2]
[335396921,1724187038078,-284.43090338,0.00010799,2]
[335396922,1724187038088,-150.75,0.00010841,2]
[335396923,1724187038097,-14881.65115831,0.00010845,2]
[335396924,1724187038107,-150.0,0.00010845,2]
[335396925,1724187038116,-150.75,0.00010845,2]
[335396926,1724187038126,-150.75,0.00010845,2]
[335396927,1724187038136,-150.75,0.00010845,2]
[335396928,1724187038147,-271833.97756497,0.00010846,2]
[335396929,1724187038155,-150.75,0.00010848,2]
[335396930,1724187038167,-150.75,0.00010848,2]
[335396931,1724187038176,-150.75,0.00010848,2]
[335396932,1724187038185,-150.75,0.00010848,2]
[335396933,1724187038195,-150.75,0.00010848,2]
[335396934,1724187038204,-13512.89913848,0.00010849,2]
[335396935,1724187038213,-150.75,0.00010849,2]
[335396937,1724187038223,-150.75,0.00010849,2]
[335396938,1724187038234,-150.75,0.00010849,2]
[335396940,1724187038243,-13512.89913848,0.00010851,2]
[335396942,1724187038252,-1006.5,0.00010851,2]
[335396944,1724187038262,-271833.97756497,0.00010851,2]
[335396946,1724187038272,-155.0,0.00010852,2]
[335396948,1724187038283,-203.26467389,0.00010852,2]
[335396950,1724187038293,-13512.89913848,0.00010852,2]
[335396952,1724187038302,-2284.27454593,0.00010853,2]
[335396954,1724187038312,-271833.97756497,0.00010855,2]
[335396956,1724187038321,-13512.89913848,0.00010856,2]
[335396958,1724187038330,-13512.89913848,0.00010856,2]
[335396960,1724187038339,-2284.27454593,0.00010857,2]
[335396962,1724187038348,-13512.89913848,0.00010857,2]
[335396964,1724187038358,-150.75,0.00010857,2]
[335396966,1724187038367,-150.75,0.00010857,2]
[335396968,1724187038377,-225.0,0.00010858,2]
[335396970,1724187038386,-225.0,0.00010858,2]
[335396972,1724187038396,-225.0,0.00010858,2]
[335396974,1724187038405,-225.0,0.00010858,2]
[335396976,1724187038414,-151.0,0.00010858,2]
[335396978,1724187038424,-186.579798,0.00010858,2]
[335396980,1724187038434,-194.436741,0.00010858,2]
[335396982,1724187038444,-271833.97756497,0.00010858,2]
[335396984,1724187038454,-271833.97756497,0.00010858,2]
[335396986,1724187038464,-225.0,0.00010859,2]
[335396988,1724187038473,-225.0,0.00010859,2]
[335396990,1724187038482,-150.75,0.00010859,2]
[335396992,1724187038491,-150.75,0.00010859,2]
[335396994,1724187038501,-150.75,0.00010859,2]
[335396996,1724187038510,-271833.97756497,0.0001086,2]
[335396998,1724187038519,-155.0,0.00010861,2]
[335397000,1724187038529,-155.0,0.00010862,2]
[335397001,1724187038538,-13512.89913848,0.00010867,2]
[335397003,1724187038547,-6761.28605719,0.00010867,2]
[335397005,1724187038559,-265072.69150778,0.00010867,2]
[335397007,1724187038568,-225.0,0.00010867,2]
[335397009,1724187038578,-225.0,0.00010867,2]
[335397011,1724187038587,-13512.89913848,0.00010869,2]
[335397013,1724187038596,-225.0,0.00010869,2]
[335397015,1724187038606,-225.0,0.00010869,2]
[335397017,1724187038614,-176399.50210941,0.00010869,2]
[335397019,1724187038625,-85897.27518784,0.00010869,2]
[335397021,1724187038637,-9537.20026772,0.00010869,2]
[335397023,1724187038648,-155.0,0.0001089,2]
[335397025,1724187038659,-12420.22993211,0.00010899,2]
[335397027,1724187038669,-1098.61851854,0.00010899,2]
[335397029,1724187038678,-500.0,0.00010958,2]
[335397031,1724187038687,-440.55778922,0.00010958,2]
[335397032,1724187038696,-500.0,0.00010958,2]
[335397034,1724187038705,-500.0,0.00010958,2]
[335397036,1724187038716,-500.0,0.00010958,2]
[335397038,1724187038725,-269.22723918,0.00010958,2]
[335397040,1724187038735,-500.0,0.00010958,2]
[335397042,1724187038744,-500.0,0.00010958,2]
[335397044,1724187038754,-500.0,0.00010958,2]
[335397046,1724187038763,-500.0,0.00010958,2]
[335397048,1724187038773,-500.0,0.00010958,2]
[335397050,1724187038782,-500.0,0.00010958,2]
[335397052,1724187038791,-500.0,0.00010958,2]
[335397054,1724187038800,-500.0,0.00010958,2]
[335397055,1724187038809,-500.0,0.00010958,2]
[335397057,1724187038818,-500.0,0.00010958,2]
[335397059,1724187038827,-500.0,0.00010958,2]
[335397061,1724187038836,-500.0,0.00010958,2]
[335397063,1724187038846,-500.0,0.00010958,2]
[335397065,1724187038855,-500.0,0.00010958,2]
[335397067,1724187038864,-500.0,0.00010958,2]
[335397069,1724187038873,-500.0,0.00010958,2]
[335397071,1724187038882,-500.0,0.00010958,2]
[335397073,1724187038891,-500.0,0.00010958,2]
[335397075,1724187038900,-500.0,0.00010958,2]
[335397077,1724187038909,-500.0,0.00010958,2]
[335397079,1724187038918,-500.0,0.00010958,2]
[335397081,1724187038927,-500.0,0.00010958,2]
[335397083,1724187038937,-500.0,0.00010958,2]
[335397085,1724187038946,-500.0,0.00010958,2]
[335397087,1724187038955,-500.0,0.00010958,2]
[335397089,1724187038964,-500.0,0.00010958,2]
[335397090,1724187038976,-500.0,0.00010958,2]
[335397092,1724187038986,-500.0,0.00010958,2]
[335397094,1724187038995,-500.0,0.00010958,2]
[335397096,1724187039004,-500.0,0.00010958,2]
[335397098,1724187039014,-500.0,0.00010958,2]
[335397100,1724187039023,-500.0,0.00010958,2]
[335397102,1724187039032,-500.0,0.00010958,2]
[335397104,1724187039042,-500.0,0.00010958,2]
[335397106,1724187039052,-500.0,0.00010958,2]
[335397108,1724187039061,-500.0,0.00010958,2]
[335397110,1724187039070,-879.02,0.00010958,2]
[335397112,1724187039079,-879.02,0.00010958,2]
[335397114,1724187039088,-879.02,0.00010958,2]
[335397116,1724187039097,-879.02,0.00010958,2]
[335397118,1724187039106,-879.02,0.00010958,2]
[335397120,1724187039115,-879.02,0.00010958,2]
[335397122,1724187039124,-879.02,0.00010958,2]
[335397124,1724187039133,-879.02,0.00010958,2]
[335397126,1724187039143,-879.02,0.00010958,2]
[335397128,1724187039152,-500.0,0.00010958,2]
[335397130,1724187039161,-500.0,0.00010958,2]
[335397132,1724187039171,-500.0,0.00010958,2]
[335397134,1724187039180,-500.0,0.00010958,2]
[335397136,1724187039189,-500.0,0.00010958,2]
[335397138,1724187039199,-500.0,0.00010958,2]
[335397140,1724187039209,-500.0,0.00010958,2]
[335397142,1724187039219,-500.0,0.00010958,2]
[335397144,1724187039228,-500.0,0.00010958,2]
[335397146,1724187039239,-500.0,0.00010958,2]
[335397148,1724187039248,-500.0,0.00010958,2]
[335397150,1724187039257,-500.0,0.00010958,2]
[335397152,1724187039266,-500.0,0.00010958,2]
[335397154,1724187039275,-500.0,0.00010958,2]
[335397156,1724187039284,-500.0,0.00010958,2]
[335397158,1724187039293,-500.0,0.00010958,2]
[335397160,1724187039303,-500.0,0.00010958,2]
[335397162,1724187039312,-277.75836936,0.00010958,2]
[335397164,1724187039321,-500.0,0.00010958,2]
[335397166,1724187039330,-540.77152485,0.00010958,2]
[335397168,1724187039340,-500.0,0.00010958,2]
[335397170,1724187039349,-500.0,0.00010958,2]
[335397172,1724187039358,-500.0,0.00010958,2]
[335397174,1724187039367,-500.0,0.00010958,2]
[335397176,1724187039378,-434.18201617,0.00010958,2]
[335397178,1724187039390,-65.81798383,0.00010958,2]
[335397180,1724187039400,-500.0,0.00010958,2]
[335397182,1724187039411,-500.0,0.00010958,2]
[335397183,1724187039420,-500.0,0.00010958,2]
[335397185,1724187039429,-500.0,0.00010958,2]
[335397187,1724187039439,-500.0,0.00010958,2]
[335397189,1724187039449,-222.28055987,0.00010958,2]
[335397191,1724187039458,-1218.93877288,0.00010958,2]
[335397207,1724187039467,-250.0,0.00010959,2]
[335397209,1724187039634,-150.75,0.0001099,2]
[335397210,1724187039644,-150.75,0.0001099,2]
[335397211,1724187039653,-150.75,0.0001099,2]
[335397212,1724187039663,-1902.96426904,0.00010997,2]
[335397529,1724187043029,-155.34727206,9.999e-05,2]
[335397531,1724187043039,-346.04565869,0.00010997,2]
[335397628,1724187043996,-35.2646182,0.00010997,2]
[335397630,1724187044006,-181.86810677,0.00010999,2]
[335397632,1724187044015,-848.33,0.00010999,2]
[335397634,1724187044024,-500.0,0.00010999,2]
[335397636,1724187044034,-500.0,0.00010999,2]
[335397638,1724187044043,-522.76547017,0.00010999,2]
[335397640,1724187044055,-274.89442741,0.00010999,2]
[335397642,1724187044065,-500.0,0.00010999,2]
[335397644,1724187044074,-500.0,0.00010999,2]
[335397646,1724187044083,-500.0,0.00010999,2]
[335397648,1724187044092,-277.12,0.00010999,2]
[335397650,1724187044101,-879.02,0.00010999,2]
[335397652,1724187044110,-500.0,0.00010999,2]
[335397654,1724187044119,-500.0,0.00010999,2]
[335397656,1724187044129,-500.0,0.00010999,2]
[335397658,1724187044139,-31678.73286342,0.00011,2]
[335398425,1724187186321,310.0,9.847e-05,2]
[335398426,1724187186348,530.0,9.847e-05,2]
[335398429,1724187234872,443.19,8.219e-05,2]
[335398432,1724187346265,170.2,9.843e-05,2]
[335398433,1724187351630,242.46946245,8.219e-05,2]
[335398434,1724187373523,291.73265066,8.219e-05,2]
[335398435,1724187375531,200.13352471,8.219e-05,2]
[335398436,1724187385901,155.0,8.219e-05,2]
[335398437,1724187386345,412.11149602,8.219e-05,2]
[335398438,1724187400695,23900.0,9.843e-05,2]
[335398439,1724187411669,155.0,8.219e-05,2]
[335398440,1724187428620,299.32,9.843e-05,2]
[335398441,1724187432866,181.74,9.843e-05,2]
[335398442,1724187434148,159.13257097,8.219e-05,2]
[335398443,1724187478380,155.0,9.843e-05,2]
[335398444,1724187487559,291.73265066,8.219e-05,2]
[335398445,1724187516681,155.0,8.219e-05,2]
[335398446,1724187517861,412.24846277,8.219e-05,2]
[335398447,1724187540146,159.15825312,8.219e-05,2]
[335398448,1724187546898,155.0,8.219e-05,2]
[335398451,1724187561219,150.0,9.872e-05,2]
[335398452,1724187564408,155.0,8.219e-05,2]
[335398453,1724187603882,411.97452927,8.219e-05,2]
[335398454,1724187604551,291.73265066,8.219e-05,2]
[335398455,1724187637141,159.15825312,8.219e-05,2]
[335398456,1724187638515,304.12480458,9.899e-05,2]
[335398457,1724187649908,155.0,8.219e-05,2]
[335398458,1724187665693,155.0,8.219e-05,2]
[335398459,1724187677470,155.0,8.219e-05,2]
[335398460,1724187680695,155.0,8.219e-05,2]
[335398461,1724187699865,412.11149602,8.219e-05,2]
[335398462,1724187707418,155.0,8.219e-05,2]
[335398463,1724187710750,448.41,8.219e-05,2]
[335398464,1724187714551,291.83011136,8.219e-05,2]
[335398465,1724187720523,328.0,9.832e-05,2]
[335398466,1724187734790,153.76,7.862e-05,2]
[335398467,1724187736172,159.15825312,8.219e-05,2]
[335398468,1724187740914,163.67145426,8.219e-05,2]
[335398469,1724187795855,412.11149602,8.219e-05,2]
[335398470,1724187815552,267.59800241,8.219e-05,2]
[335398471,1724187819715,155.0,8.219e-05,2]
[335398472,1724187847823,155.0,9.899e-05,2]
[335398473,1724187857319,9386.71,9.801e-05,2]
[335398474,1724187857848,151.57,8.219e-05,2]
[335398475,1724187868786,5756.02,9.884e-05,2]
[335398478,1724187881148,159.15825312,9.899e-05,2]
[335398479,1724187891237,250.0,9.814e-05,2]
[335398480,1724187900472,155.0,9.899e-05,2]
[335398481,1724187900855,412.11149602,9.899e-05,2]
[335398482,1724187918723,155.0,9.899e-05,2]
[335398483,1724187946284,199.77,9.828e-05,2]
[335398486,1724187965576,330.34282033,9.899e-05,2]
[335398487,1724187979164,159.15825312,9.828e-05,2]
[335398488,1724187996689,150.0,9.888e-05,2]
[335398489,1724188004881,412.17913044,9.828e-05,2]
[335398490,1724188019425,175.75667441,9.828e-05,2]
[335398491,1724188023008,600.60859268,9.899e-05,2]
[335398502,1724188039871,171.68,9.82e-05,2]
[335398526,1724188044555,200.0,9.771e-05,2]
[335398527,1724188067426,431.37387087,9.899e-05,2]
[335398528,1724188080735,305.0,9.899e-05,2]
[335398529,1724188127884,412.0438616,9.899e-05,2]
[335398538,1724188172686,200.0,9.85e-05,2]
[335398539,1724188178298,159.18491271,9.899e-05,2]
[335398541,1724188215712,737.6,9.828e-05,2]
[335398555,1724188232120,-1361.45276237,0.0001,2]
[335398556,1724188232133,-1198.16775,0.0001,2]
[335398557,1724188232178,-708.40821456,0.0001,2]
[335398560,1724188232346,-299.99,0.0001,2]
[335398572,1724188238177,-547.21110408,0.0001,2]
[335398573,1724188238186,-155.1849344,0.00010009,2]
[335398574,1724188238197,-432.79780732,0.00010009,2]
[335398575,1724188238206,-253.79099211,0.00010009,2]
[335398576,1724188238216,-218.58238169,0.00010009,2]
[335398577,1724188238225,-99.5656138,0.00010009,2]
[335398578,1724188238237,-120.34402411,0.00010009,2]
[335398579,1724188238246,-306.54258702,0.00010009,2]
[335398580,1724188238256,-460.4481801,0.00010009,2]
[335398581,1724188238265,-300.0,0.00010025,2]
[335398582,1724188238276,-300.0,0.00010025,2]
[335398583,1724188238285,-1632.68396019,0.00010026,2]
[335398584,1724188238393,-266.20925996,0.00010026,2]
[335398585,1724188238403,-150.0,0.00010437,2]
[335398586,1724188238413,-448.41,0.00010467,2]
[335398587,1724188238422,-155.0,0.00010471,2]
[335398588,1724188238433,-910.09883708,0.00010639,2]
[335398589,1724188238442,-150.99,0.00010738,2]
[335398590,1724188238451,-360.2,0.00010738,2]
[335398591,1724188238461,-150.99,0.00010738,2]
[335398592,1724188238470,-150.0,0.00010738,2]
[335398593,1724188238479,-88187.034,0.00010739,2]
[335398594,1724188238488,-900.4459,0.00010739,2]
[335398595,1724188238497,-388.2159,0.00010739,2]
[335398596,1724188238506,-188.19,0.00010739,2]
[335398597,1724188238515,-29296.0,0.00010739,2]
[335398598,1724188238525,-320.72880987,0.00010742,2]
[335398599,1724188238535,-164.03405319,0.0001075,2]
[335398600,1724188238544,-150.75,0.00010833,2]
[335398601,1724188238553,-150.75,0.00010835,2]
[335398602,1724188238562,-150.75,0.00010836,2]
[335398603,1724188238572,-9654.6683165,0.00010837,2]
[335398604,1724188238581,-181.94838812,0.00010839,2]
[335398605,1724188238591,-162440.34694581,0.00010839,2]
[335398606,1724188238600,-58875.02222611,0.0001084,2]
[335398607,1724188238609,-150.75,0.0001084,2]
[335398608,1724188238619,-150.75,0.0001084,2]
[335398609,1724188238629,-166.64792709,0.0001084,2]
[335398610,1724188238638,-3767.40879952,0.00010841,2]
[335398611,1724188238648,-3767.40879952,0.00010841,2]
[335398612,1724188238657,-166.64792709,0.00010842,2]
[335398614,1724188238666,-3417.6255,0.00010842,2]
[335398615,1724188238675,-89220.97816352,0.00010842,2]
[335398618,1724188238684,-1539.89475523,0.00010842,2]
[335398619,1724188238694,-9654.6683165,0.00010842,2]
[335398621,1724188238703,-181.94838812,0.00010843,2]
[335398624,1724188238712,-89220.97816352,0.00010843,2]
[335398626,1724188238721,-9654.6683165,0.00010843,2]
[335398627,1724188238730,-3767.40879952,0.00010843,2]
[335398628,1724188238739,-22281.5746951,0.00010844,2]
[335398629,1724188238750,-569.78816292,0.00010844,2]
[335398630,1724188238761,-14850.0,0.00010844,2]
[335398632,1724188240209,-807.73443717,0.00010844,2]
[335398640,1724188240340,-1596.3,0.00010844,2]
[335398642,1724188240356,-795.29036945,0.00010844,2]
[335398644,1724188240367,-1840.0,0.00010844,2]
[335398646,1724188240382,-4153.22598848,0.00010844,2]
[335398647,1724188240394,-1630.38532891,0.00010844,2]
[335398648,1724188240405,-4626.59156538,0.00010844,2]
[335398649,1724188240416,-550.0,0.00010844,2]
[335398650,1724188240428,-5174.1316787,0.00010844,2]
[335398651,1724188240439,-150.75,0.00010844,2]
[335398652,1724188240448,-9654.6683165,0.00010845,2]
[335398653,1724188240457,-3767.40879952,0.00010845,2]
[335398654,1724188240466,-73544.08839143,0.00010845,2]
[335398655,1724188240477,-48463.23838486,0.00010845,2]
[335398656,1724188240488,-1130.54686907,0.00010845,2]
[335398657,1724188240499,-10908.24907385,0.00010845,2]
[335398658,1724188240511,-1244.6844767,0.00010845,2]
[335398659,1724188240522,-12166.95600629,0.00010845,2]
[335398660,1724188240533,-14982.58374361,0.00010845,2]
[335398661,1724188240542,-89220.97816352,0.00010846,2]
[335398662,1724188240552,-58875.02222611,0.00010847,2]
[335398663,1724188240560,-181.94838812,0.00010847,2]
[335398664,1724188240569,-181.94838812,0.00010849,2]
[335398665,1724188240579,-58875.02222611,0.0001085,2]
[335398666,1724188240588,-108988.23019365,0.0001085,2]
[335398667,1724188240599,-2336.89922027,0.0001085,2]
[335398668,1724188240610,-1581.58568819,0.0001085,2]
[335398669,1724188240622,-49533.6318437,0.0001085,2]
[335398670,1724188240634,-181.94838812,0.0001085,2]
[335398671,1724188240643,-151.0,0.0001085,2]
[335398672,1724188240653,-151.0,0.0001085,2]
[335398673,1724188240662,-151.0,0.0001085,2]
[335398674,1724188240672,-151.0,0.0001085,2]
[335398675,1724188240682,-151.0,0.0001085,2]
[335398676,1724188240691,-151.0,0.0001085,2]
[335398677,1724188240700,-151.0,0.0001085,2]
[335398678,1724188240710,-151.0,0.0001085,2]
[335398679,1724188240719,-156.154482,0.0001085,2]
[335398680,1724188240728,-151.0,0.0001085,2]
[335398681,1724188240738,-151.0,0.0001085,2]
[335398682,1724188240747,-151.0,0.0001085,2]
[335398683,1724188240757,-151.0,0.0001085,2]
[335398684,1724188240766,-151.0,0.0001085,2]
[335398685,1724188240776,-151.0,0.0001085,2]
[335398686,1724188240785,-151.0,0.0001085,2]
[335398687,1724188240795,-151.0,0.0001085,2]
[335398688,1724188240804,-151.0,0.0001085,2]
[335398689,1724188240813,-151.0,0.0001085,2]
[335398690,1724188240823,-151.0,0.0001085,2]
[335398691,1724188240832,-151.0,0.0001085,2]
[335398692,1724188240842,-150.75,0.0001085,2]
[335398693,1724188240851,-151.0,0.0001085,2]
[335398694,1724188240861,-150.75,0.0001085,2]
[335398695,1724188240871,-150.75,0.0001085,2]
[335398696,1724188240882,-3767.40879952,0.00010852,2]
[335398697,1724188240891,-181.94838812,0.00010853,2]
[335398698,1724188240901,-3767.40879952,0.00010853,2]
[335398699,1724188240910,-33528.48484222,0.00010853,2]
[335398700,1724188240922,-731.29646566,0.00010853,2]
[335398701,1724188240934,-1185.26813708,0.00010853,2]
[335398702,1724188240945,-258.4,0.00010853,2]
[335398703,1724188240956,-1244.97831253,0.00010853,2]
[335398704,1724188240968,-6364.07920364,0.00010853,2]
[335398705,1724188240979,-1349.29762455,0.00010853,2]
[335398706,1724188240991,-694.84252653,0.00010853,2]
[335398707,1724188241002,-630.94390266,0.00010853,2]
[335398708,1724188241013,-699.30599795,0.00010853,2]
[335398709,1724188241024,-595.297534,0.00010853,2]
[335398710,1724188241035,-258.16,0.00010853,2]
[335398711,1724188242684,-41680.6236167,0.00010853,2]
[335398712,1724188242694,-150.75,0.00010854,2]
[335398713,1724188242704,-89220.97816352,0.00010854,2]
[335398714,1724188242713,-181.94838812,0.00010854,2]
[335398715,1724188242723,-166.64792709,0.00010854,2]
[335398716,1724188242732,-150.75,0.00010855,2]
[335398717,1724188242742,-150.75,0.00010857,2]
[335398718,1724188242751,-1539.89475523,0.00010858,2]
[335398719,1724188242760,-150.75,0.00010858,2]
[335398720,1724188242770,-162440.34694581,0.0001086,2]
[335398721,1724188242780,-151.0,0.0001086,2]
[335398722,1724188242790,-151.0,0.0001086,2]
[335398723,1724188242799,-151.0,0.0001086,2]
[335398724,1724188242809,-151.0,0.0001086,2]
[335398725,1724188242819,-151.0,0.0001086,2]
[335398726,1724188242828,-240.717916,0.0001086,2]
[335398727,1724188242839,-151.0,0.0001086,2]
[335398728,1724188242848,-187.618877,0.0001086,2]
[335398734,1724188243026,-297.646079,0.0001086,2]
[335398735,1724188243036,-289.379558,0.0001086,2]
[335398736,1724188243045,-151.0,0.0001086,2]
[335398737,1724188243055,-151.0,0.0001086,2]
[335398738,1724188243065,-162440.34694581,0.0001086,2]
[335398739,1724188243075,-162440.34694581,0.0001086,2]
[335398740,1724188243085,-166.64792709,0.00010861,2]
[335398741,1724188243094,-89220.97816352,0.00010863,2]
[335398742,1724188243104,-79833.95426574,0.00010863,2]
[335398743,1724188243148,-151.0,0.0001085,2]
[335398745,1724188243157,-484.093,0.00010863,2]
[335398747,1724188243168,-500.0,0.00010863,2]
[335398750,1724188243179,-41205.83266637,0.00010863,2]
[335398764,1724188243293,-2982.26387727,0.00010863,2]
[335398768,1724188243304,-265.7,0.00010863,2]
[335398770,1724188243315,-571.571,0.00010863,2]
[335398772,1724188243327,-674.16794245,0.00010863,2]
[335398774,1724188243338,-1082.91734936,0.00010863,2]
[335398776,1724188243349,-6679.72932,0.00010863,2]
[335398778,1724188243364,-1917.09253312,0.00010863,2]
[335398781,1724188243375,-338.33948636,0.00010863,2]
[335398783,1724188243388,-529.685291,0.00010863,2]
[335398785,1724188243400,-438.55758648,0.00010863,2]
[335398787,1724188243410,-2447.60779868,0.00010863,2]
[335398789,1724188243421,-484.33001,0.00010863,2]
[335398792,1724188243433,-22004.50481898,0.00010863,2]
[335398794,1724188243444,-151.0,0.00010864,2]
[335398796,1724188243453,-151.0,0.00010864,2]